Cogmind - Beta 11 X8 @@@ ROGUE MODE // 2021.11.09 @ 18:57:40 Player: Runia Result: Destroyed by H-61 Shepherd with Heavy Assault Cannon Performance ------------- Evolutions (2) 1000 Regions Visited (7) 1400 Robots Destroyed (164) 820 Value Destroyed (4158) 4158 Prototype IDs (15) 300 Alien Tech Used (0) 0 Bonus (-99) -99 TOTAL SCORE: 7579 Bonus ------- High Alert Combat Kills 722 Friendly Fire -821 Cogmind --------- Core Integrity 0/550 Matter 250/300 Energy 270/290 System Corruption 0% Temperature Cool (0) Movement Walking (120) Location -8/Materials Parts ------- > --- POWER (1) -------- Improved Deuterium Engine > --- PROPULSION (4) --- Carbon-fiber Leg Carbon-fiber Leg Improved Carbon-fiber Leg Improved Carbon-fiber Leg > --- UTILITY (4) ------ Improved Cooling System High-capacity Storage Unit Experimental Targeting Computer Advanced Weapon Cycler > --- WEAPON (2) ------- Precision Beam Rifle Cooled Particle Cannon > --- INVENTORY (20) --- Improved Deuterium Engine Cold Fusion Reactor Improved Carbon-fiber Leg Advanced Myomer Leg Experimental Heat Sink Improved Sensor Array Improved Signal Interpreter Improved Armor Integrity Analyzer Authchip [Propulsion] Authchip [Device] AS-neutralizer No. 17b Improved Medium Laser Precision Beam Rifle Precision Beam Rifle Precision Beam Rifle 8R-AWN's Boregun Rocket Launcher Missile Launcher Blade Saw Peak State ------------ > --- POWER ------------ Improved Deuterium Engine > --- PROPULSION ------- Carbon-fiber Leg Carbon-fiber Leg Improved Carbon-fiber Leg Improved Carbon-fiber Leg > --- UTILITY ---------- Experimental Heat Sink High-capacity Storage Unit Experimental Targeting Computer Advanced Weapon Cycler > --- WEAPON ----------- Cooled Particle Cannon Cooled Particle Cannon > --- INVENTORY -------- Cold Fusion Reactor Carbon-fiber Leg Advanced Myomer Leg Advanced Heat Sink Improved Sensor Array Improved Signal Interpreter Improved Armor Integrity Analyzer Authchip [Propulsion] Authchip [Device] AS-neutralizer No. 17b Improved Medium Laser Precision Beam Rifle Precision Beam Rifle Precision Beam Rifle Precision Beam Rifle 8R-AWN's Boregun Rocket Launcher Mini Grenade Launcher Missile Launcher [Rating: 58] Favorites ----------- Power Reinforced Fission Core Engine Cooled Ion Engine Power Core Reinforced Fission Core Propulsion Light Treads Treads Light Treads Leg Carbon-fiber Leg Utility Large Storage Unit Device Experimental Heat Sink Storage Large Storage Unit Processor Experimental Targeting Computer Protection Improved Medium Armor Plating Weapon Improved Assault Rifle Energy Gun Medium Laser Energy Cannon Cooled Particle Cannon Ballistic Gun Improved Assault Rifle Launcher Rocket Launcher Special Weapon Plasma Cutter Slashing Weapon Mining Claw Build | -11 -10 -10 -9 -9 -9 -8 -8 ------- Run | Scr Mat Min Mat Min Exi Min Mat Slots Evolved 4 | . . . 2 . . . 2 Power . | . . . . . . . . Propulsion 2 | . . . 1 . . . 1 Utility 2 | . . . 1 . . . 1 Weapon . | . . . . . . . . Parts Attached 136 | 2 15 10 21 8 22 6 52 Power 9 | . 2 1 2 . 1 . 3 Engine 8 | . 2 1 2 . . . 3 Core 1 | . . . . . 1 . . Reactor . | . . . . . . . . Propulsion 43 | 2 4 2 6 1 8 2 18 Treads 21 | 2 4 2 6 1 5 . 1 Leg 22 | . . . . . 3 2 17 Wheel . | . . . . . . . . Hover . | . . . . . . . . Flight . | . . . . . . . . Utility 29 | . 2 . 5 4 6 1 11 Device 8 | . 1 . . . 3 . 4 Storage 3 | . 1 . 1 . 1 . . Processor 2 | . . . . . . . 2 Hackware . | . . . . . . . . Protection 16 | . . . 4 4 2 1 5 Artifact . | . . . . . . . . Weapon 55 | . 7 7 8 3 7 3 20 Energy Gun 8 | . 1 1 2 . . . 4 Energy Cannon 11 | . . . . . . . 11 Ballistic Gun 18 | . 3 2 4 2 5 2 . Ballistic Cannon . | . . . . . . . . Launcher 16 | . 3 4 2 1 1 1 4 Special Weapon 1 | . . . . . 1 . . Impact Weapon . | . . . . . . . . Slashing Weapon 1 | . . . . . . . 1 Piercing Weapon . | . . . . . . . . Special Melee Weapon . | . . . . . . . . Unidentified Prototypes 11 | . . . 2 . 3 . 6 Corrupted Parts 1 | . . 1 . . . . . System Corruption 7 | . . 7 . . . . . Parts Lost 17 | . . . . . 5 1 11 Power 1 | . . . . . . . 1 Propulsion 7 | . . . . . 2 1 4 Utility 6 | . . . . . 1 . 5 Weapon 3 | . . . . . 2 . 1 Highest Loss Streak 3 | . . . . . 3 1 3 Average Slot Usage (%) 97 | . 91 100 95 100 99 99 96 Engine 6 | . 14 14 11 11 4 . 1 Core 3 | . . . . . 6 11 6 Treads 20 | . 27 28 31 33 26 . . Leg 11 | . . . . . 6 32 35 Device 7 | . 6 14 3 . 2 7 17 Storage 11 | . 14 14 11 11 11 11 9 Protection 12 | . . . 16 22 19 14 7 Energy Gun 4 | . 14 13 2 . . . 3 Energy Cannon 3 | . . . . . . . 13 Ballistic Gun 13 | . 13 12 18 20 21 21 . Naked Turns . | . . . . . . . . Heaviest Build 84 | 11 29 37 42 48 74 84 84 Greatest Support 75 | 40 40 40 60 60 60 60 75 Greatest Overweight (x) 1 | . 1 . . . 1 1 1 Average Overweight (x) . | . . . . . . 1 . Largest Inventory Capacity 20 | 8 15 15 15 15 20 20 20 Average Capacity 16 | 8 13 15 15 15 15 20 20 Most Carried 20 | 5 15 15 15 15 18 19 20 Average Carried 15 | 3 10 14 14 15 13 18 19 Final Capacity 20 | 8 15 15 15 15 20 20 20 Final Carried 19 | 2 13 13 15 15 18 19 19 Class Distribution -------------------- 60% | Mutant 39% | Scavenger-Mutant Dominant Class ---------------- Mutant | -10/Materials Mutant | -10/Mines Mutant | -9/Materials Mutant | -9/Mines Scavenger-Mutant | -9/Exiles Scavenger-Mutant | -8/Mines Scavenger-Mutant | -8/Materials Resources | -11 -10 -10 -9 -9 -9 -8 -8 ----------- Run | Scr Mat Min Mat Min Exi Min Mat Matter Collected 3105 | 200 242 170 569 246 656 244 778 Remotely . | . . . . . . . . Salvage Created 5866 | . 437 177 971 296 633 228 3124 Parts 360 | . 28 26 53 22 78 10 143 Haulers Intercepted 11 | . 1 . 4 . . . 6 Recyclers Shooed 6 | . 1 1 1 1 . . 2 Parts Field Recycled . | . . . . . . . . Retrieved Matter . | . . . . . . . . Parts Self-Destructed . | . . . . . . . . Prevented . | . . . . . . . . Kills | -11 -10 -10 -9 -9 -9 -8 -8 ------- Run | Scr Mat Min Mat Min Exi Min Mat Combat Hostiles Destroyed 117 | . 12 9 20 11 3 7 55 Guns 41 | . 5 . 15 5 1 5 10 Cannons 24 | . . . . . . . 24 AOE 47 | . 7 9 5 6 2 2 16 Classes Destroyed 21 | . 8 . 1 1 3 1 7 Worker 5 | . 2 . 2 . . . 1 Builder 6 | . 1 2 . 1 . . 2 Tunneler 1 | . 1 . . . . . . Hauler 11 | . 1 . 4 . . . 6 Recycler 7 | . 1 . 1 1 . . 4 Mechanic 2 | . . . . . . . 2 Operator 1 | . . . . . . . 1 Turret 1 | . . . . . 1 . . Watcher 7 | . 2 . 1 . . . 4 Swarmer 35 | . 6 9 7 4 . 3 6 Cutter 4 | . . . . . . . 4 Grunt 48 | . 6 . 9 3 . 3 27 Brawler 2 | . . . . . . . 2 Duelist 4 | . . . . . . . 4 Protector 1 | . . . . . . . 1 Sentry 12 | . . . 4 2 . . 6 Demolisher 2 | . . . . 2 . . . Specialist 4 | . . . . . . . 4 Hunter 2 | . . . . . . 1 1 Zionite 8 | . . . . . 8 . . Assembled 2 | . . . . . 2 . . Best Kill Streak 9 | . 6 3 5 7 2 4 9 Combat Bots Only 8 | . 5 3 4 7 2 4 8 Max Kills in Single Turn 4 | . 4 3 4 3 1 2 3 Gunslinging 1 | . . . 1 1 . . . Exploded 4 | . 4 3 4 3 1 1 2 Melee . | . . . . . . . . Uniques/NPCs Destroyed 5 | . . 1 . . 4 . . YI-UF0 (-10/Mines) 8R-AWN (-9/Exiles) EX-BIN (-9/Exiles) EX-HEX (-9/Exiles) EX-DEC (-9/Exiles) Combat | -11 -10 -10 -9 -9 -9 -8 -8 -------- Run | Scr Mat Min Mat Min Exi Min Mat Damage Taken 6654 | . 287 201 698 636 1044 488 3300 Core 919 | . 20 30 103 62 96 28 580 Absorbed by Shields . | . . . . . . . . Core Remaining (%) 69 | 100 . 80 . . . 27 . Volleys Fired 471 | . 37 17 67 22 134 12 182 Largest 2 | . 2 2 2 2 2 2 2 Hottest 123 | . 70 70 79 46 46 53 123 Shots Fired 750 | . 65 23 123 38 164 21 316 Gun 493 | . 57 12 118 32 159 18 97 Cannon 206 | . . . . . . . 206 Launcher 48 | . 8 11 5 6 2 3 13 Special 3 | . . . . . 3 . . Kinetic 348 | . 29 6 96 32 159 18 8 Thermal 319 | . 28 6 22 . 3 . 260 Explosive 43 | . 8 6 5 6 2 3 13 Electromagnetic 40 | . . 5 . . . . 35 Robot Hit Streak 60 | . 5 4 12 12 60 7 11 Robot Miss Streak 5 | . 3 2 4 2 5 1 5 Penetration Max 2 | . . . . . 1 2 . Secondary Targets 3 | . . . 2 1 . . . Max Gunslinging Chain 1 | . . . 1 1 . . . Shots Hit Robots 478 | . 30 14 84 32 97 17 204 Core Hits 272 | . 29 13 40 18 40 12 120 Critical Kills 10 | . . . 1 . 4 4 1 Critical Parts Destroyed 15 | . . . . 1 11 2 1 Critical Strikes 38 | . 1 . 3 1 16 6 11 Burn 11 | . 1 . 2 . . . 8 Meltdown 1 | . . . . . . . 1 Destroy 25 | . . . 1 1 16 6 1 Corrupt 1 | . . . . . . . 1 Melee Attacks . | . . . . . . . . Impact . | . . . . . . . . Slashing . | . . . . . . . . Piercing . | . . . . . . . . Sneak Attacks . | . . . . . . . . Combat Hostiles . | . . . . . . . . Follow-up Attacks . | . . . . . . . . Damage Inflicted 13562 | . 1019 825 1591 1015 1841 576 6695 Guns 5212 | . 286 63 1151 423 1714 281 1294 Cannons 3458 | . . . . . . . 3458 Explosions 4854 | . 733 758 440 592 122 291 1918 Melee . | . . . . . . . . Ramming 36 | . . 4 . . 3 4 25 Kinetic 3531 | . 84 38 935 423 1714 281 56 Thermal 4553 | . 202 25 216 . 2 . 4108 Explosive 4556 | . 733 625 440 592 122 291 1753 Electromagnetic 886 | . . 133 . . . . 753 Impact . | . . . . . . . . Slashing . | . . . . . . . . Piercing . | . . . . . . . . Highest Corruption 8 | . 1 8 2 2 2 2 . Average Corruption 1 | . 1 1 2 2 2 2 . Corruption Purged . | . . . . . . . . Effects 42 | . 2 4 5 8 21 2 . Message Errors 12 | . 1 . . 2 9 . . Heat Flow Errors 7 | . . 1 1 1 3 1 . Energy Discharges 15 | . 1 3 3 1 6 1 . Data Loss (minor) 7 | . . . 1 4 2 . . Weapon Failures 1 | . . . . . 1 . . Overload Shots . | . . . . . . . . Overflow Damage 288 | . 35 65 . 70 . . 118 Projectiles 55 | . . . . . . . 55 Explosions 233 | . 35 65 . 70 . . 63 Melee . | . . . . . . . . Knockbacks 1 | . . 1 . . . . . Impact 1 | . . 1 . . . . . Kinetic . | . . . . . . . . Secondary . | . . . . . . . . Self-Inflicted Damage 348 | . 27 104 . . . 100 117 Shots 14 | . 2 6 . . . 3 3 Rammed 1 | . . . . . 1 . . Targets Rammed 7 | . . 1 . . 2 1 3 Kicked 4 | . . . . . . 1 3 Crushed 2 | . . 1 . . 1 . . Highest Temperature 258 | . 140 190 183 118 194 81 258 Average Temperature 47 | . 36 63 45 22 56 27 44 Received Heat Transfer 1743 | . 99 . 276 144 63 153 1008 Siege Activations . | . . . . . . . . Robots Corrupted 3 | . . 1 . . . . 2 Combat Hostiles 2 | . . . . . . . 2 Parts Fried 11 | . . 1 . . . . 10 Impact Corruptions . | . . . . . . . . Robots Melted 3 | . . . . . . . 3 Combat Hostiles 3 | . . . . . . . 3 Parts Melted 16 | . . . 1 . . . 15 Heat Transferred 8620 | . 666 74 740 . 18 . 7122 Parts Sabotaged . | . . . . . . . . Parts Stolen . | . . . . . . . . Parts Stripped . | . . . . . . . . Power Chain Reactions 2 | . . . . . . . 2 Missiles Intercepted . | . . . . . . . . Alert | -11 -10 -10 -9 -9 -9 -8 -8 ------- Run | Scr Mat Min Mat Min Exi Min Mat Peak Influence 1004 | . 219 123 472 365 . 175 1004 Initial 120 | . . 48 39 120 . . 68 Average 320 | . 59 74 341 177 . 84 599 Maximum Alert Level 3 | . 1 . 2 1 . . 3 Low Security (%) 46 | 100 90 100 6 54 . 100 17 Level 1 23 | . 9 . 54 45 . . 14 Level 2 10 | . . . 38 . . . 11 Level 3 19 | . . . . . . . 56 Level 4 . | . . . . . . . . Level 5 . | . . . . . . . . High Security . | . . . . . . . . Max Security . | . . . . . . . . Squads Dispatched 17 | . 2 . 4 1 . . 10 Investigation 4 | . 1 . 1 1 . . 1 Extermination . | . . . . . . . . Reinforcement 10 | . 1 . 3 . . . 6 Assault 3 | . . . . . . . 3 Garrison . | . . . . . . . . Intercept . | . . . . . . . . Construction Impeded . | . . . . . . . . Haulers Reinforced . | . . . . . . . . Active Scanning Responses . | . . . . . . . . Cargo Convoy Interrupts . | . . . . . . . . Stealth | -11 -10 -10 -9 -9 -9 -8 -8 --------- Run | Scr Mat Min Mat Min Exi Min Mat Distress Signals 3 | . 1 . 1 . . . 1 Communications Jammed . | . . . . . . . . Distress Signals . | . . . . . . . . Times Spotted 176 | . 19 9 28 11 29 8 72 Peak Tracking Total 9 | . 8 3 4 7 9 5 6 Tactical Retreats 13 | . 1 . . . 11 1 . Traps | -11 -10 -10 -9 -9 -9 -8 -8 ------- Run | Scr Mat Min Mat Min Exi Min Mat Traps Triggered 4 | . 2 . 1 . . . 1 Indirectly . | . . . . . . . . Trap Hack Attempts . | . . . . . . . . Triggered . | . . . . . . . . Disarmed . | . . . . . . . . Reprogrammed . | . . . . . . . . Reused . | . . . . . . . . Traps Extracted . | . . . . . . . . Installed . | . . . . . . . . Triggered . | . . . . . . . . Exploded 3 | . . . . . 3 . . Machines | -11 -10 -10 -9 -9 -9 -8 -8 ---------- Run | Scr Mat Min Mat Min Exi Min Mat Machines Disabled 27 | . . 2 2 1 17 . 5 Max in Single Turn 3 | . . 2 2 1 2 . 3 Garrison Access 1 | . . . . . . . 1 Machines Sabotaged . | . . . . . . . . Garrisons Compromised . | . . . . . . . . Overloaded Fab Kills . | . . . . . . . . Hacking | -11 -10 -10 -9 -9 -9 -8 -8 --------- Run | Scr Mat Min Mat Min Exi Min Mat Machines Accessed 22 | . 6 . 5 1 1 . 9 Terminals 12 | . 5 . 3 . . . 4 Fabricators . | . . . . . . . . Repair Stations 3 | . . . 1 . . . 2 Recycling Units 4 | . 1 . 1 . . . 2 Scanalyzers . | . . . . . . . . Garrison Access 1 | . . . . . . . 1 Total Hacks 49 | . 16 . 12 1 1 . 19 Successful 24 | . 7 . 8 1 1 . 7 Failed 25 | . 9 . 4 . . . 12 Catastrophic 2 | . . . 1 . . . 1 Database Lockouts . | . . . . . . . . Manual 14 | . 6 . 1 . . . 7 Terminals 30 | . 14 . 7 . . . 9 Fabricators . | . . . . . . . . Repair Stations 9 | . . . 4 . . . 5 Recycling Units 6 | . 2 . 1 . . . 3 Scanalyzers . | . . . . . . . . Garrison Access 2 | . . . . . . . 2 Terminal Hacks 12 | . 6 . 3 1 1 . 1 Record 1 | . . . . . 1 . . Prototype ID Bank 2 | . 1 . 1 . . . . Open Door 1 | . . . . 1 . . . Branch Access Points 1 | . 1 . . . . . . Terminal Index 1 | . 1 . . . . . . Unreport Threat 1 | . . . . . . . 1 Hauler Manifests 2 | . 2 . . . . . . Zone Layout 3 | . 1 . 2 . . . . Fabricator Hacks . | . . . . . . . . Repair Station Hacks 7 | . . . 4 . . . 3 Scan Component 4 | . . . 2 . . . 2 Repair 3 | . . . 2 . . . 1 Recycling Unit Hacks 1 | . . . . . . . 1 Report Inventory 1 | . . . . . . . 1 Scanalyzer . | . . . . . . . . Garrison Access Hacks 1 | . . . . . . . 1 Seal Access 1 | . . . . . . . 1 Unauthorized Hacks 3 | . 1 . 1 . . . 1 Terminals . | . . . . . . . . Fabricators . | . . . . . . . . Repair Stations . | . . . . . . . . Recycling Units 3 | . 1 . 1 . . . 1 Tunnel 3 | . 1 . 1 . . . 1 Scanalyzers . | . . . . . . . . Garrison Access . | . . . . . . . . Data Cores Recovered . | . . . . . . . . Used . | . . . . . . . . Hacking Detections 12 | . 3 . 1 . . . 8 Full Trace Events . | . . . . . . . . Feedback Events . | . . . . . . . . Feedback Blocked . | . . . . . . . . Robot Schematics Acquired . | . . . . . . . . Robots Built . | . . . . . . . . Authchips . | . . . . . . . . Time . | . . . . . . . . Total Robot Build Rating . | . . . . . . . . Part Schematics Acquired . | . . . . . . . . Parts Built . | . . . . . . . . Authchips . | . . . . . . . . Time . | . . . . . . . . Total Part Build Rating . | . . . . . . . . Parts Repaired 3 | . . . 2 . . . 1 Time 90 | . . . 52 . . . 38 Parts Recycled . | . . . . . . . . Recycled Matter . | . . . . . . . . Retrieved Matter . | . . . . . . . . Retrieved Components . | . . . . . . . . Parts Scanalyzed . | . . . . . . . . Part Schematics Acquired . | . . . . . . . . Parts Damaged . | . . . . . . . . Bothacking | -11 -10 -10 -9 -9 -9 -8 -8 ------------ Run | Scr Mat Min Mat Min Exi Min Mat Used RIF Installer . | . . . . . . . . Robots Hacked . | . . . . . . . . Non-combat . | . . . . . . . . Combat . | . . . . . . . . Robot Hacks Applied . | . . . . . . . . Relay Couplers Released . | . . . . . . . . Fabnet Peak Effective % . | . . . . . . . . Robots Rewired . | . . . . . . . . Allies Hacked . | . . . . . . . . Hacks Repelled . | . . . . . . . . Allies | -11 -10 -10 -9 -9 -9 -8 -8 -------- Run | Scr Mat Min Mat Min Exi Min Mat Total Allies 2 | . . . . 2 . . . Largest Group 2 | . . . . 2 1 . . Highest-Rated Group 49 | . . . . 49 18 . . Highest-Rated Ally 31 | . . . . 31 18 . . Total Orders . | . . . . . . . . Ally Attacks 4 | . . . . 4 . . . Total Damage 66 | . . . . 66 . . . Kills . | . . . . . . . . Allies Corrupted . | . . . . . . . . Allies Melted . | . . . . . . . . Intel | -11 -10 -10 -9 -9 -9 -8 -8 ------- Run | Scr Mat Min Mat Min Exi Min Mat Robot Analysis Total . | . . . . . . . . Derelict Logs Recovered 3 | . . 2 . 1 . . . Drone Launches . | . . . . . . . . Drone Recoveries . | . . . . . . . . Exploration | -11 -10 -10 -9 -9 -9 -8 -8 ------------- Run | Scr Mat Min Mat Min Exi Min Mat Turns Passed 9249 | 4 1020 916 1227 1013 2406 261 2402 Spaces Moved 4366 | 1 552 529 574 551 1085 104 970 Core . | . . . . . . . . Treads 3014 | 1 552 529 574 551 807 . . Legs 1352 | . . . . . 278 104 970 Wheels . | . . . . . . . . Hover . | . . . . . . . . Flight . | . . . . . . . . Fastest Speed 120 | 160 160 160 160 160 140 203 120 Average Speed 172 | 160 160 160 160 160 184 208 182 Slowest Speed 240 | 160 240 160 160 160 240 210 205 Overloaded Moves . | . . . . . . . . Propulsion Burnouts . | . . . . . . . . Robots Hopped . | . . . . . . . . Cave-ins Triggered . | . . . . . . . . Exploration Rate (%) 62 | 2 87 94 47 92 78 33 64 Regions Visited 7 Branch Regions 4 Pre-discovered Areas 7 | . 1 2 1 1 1 . 1 Known Exits Taken 1 | . 1 . . . . . . Unknown Exits Taken 6 | 1 . 1 1 1 1 1 . Scrap Searched 4 | . . 2 . 1 . 1 . Spaces Dug 10 | . 6 . . . . . 4 Terrain Destroyed 406 | . 46 58 41 37 28 30 166 Melee . | . . . . . . . . Projectile 68 | . . . . . 13 1 54 AOE 336 | . 46 58 41 37 13 29 112 Terrain Rammed . | . . . . . . . . Walls Destroyed . | . . . . . . . . Machines Disabled . | . . . . . . . . Actions | -11 -10 -10 -9 -9 -9 -8 -8 --------- Run | Scr Mat Min Mat Min Exi Min Mat Total 5471 | 6 628 573 770 646 1324 125 1399 Wait 320 | . . 10 68 61 48 . 133 Move 4359 | . 551 528 573 550 1084 103 970 Hop . | . . . . . . . . Pick Up 77 | . 15 3 16 . 17 2 24 Fast Attach 34 | . 4 1 7 . 4 1 17 Attach 20 | 2 . . 1 . 5 1 11 Detach . | . . . . . . . . Swap 82 | . 11 9 13 8 13 4 24 Drop 101 | 4 10 4 25 5 17 1 35 Fire 471 | . 37 17 67 22 134 12 182 Melee . | . . . . . . . . Ram . | . . . . . . . . Kick 4 | . . . . . . 1 3 Crush 3 | . . 1 . . 2 . . Escape Stasis . | . . . . . . . . Rewire . | . . . . . . . . Trap . | . . . . . . . . Miscellaneous . | . . . . . . . . Route ------- -11/Scrapyard -10/Materials (discovered 4 exits: *Mat x2 / *Min x2) -10/Mines (discovered 2 exits: *Mat x2) -9/Materials (discovered 2 exits: *Mat / *Min) -9/Mines (discovered 3 exits: *Mat x2 / *Exi) -9/Exiles -8/Mines -8/Materials (discovered 4 exits: [*Fac x3] / [*Sto]) History --------- Turn | Location | Event 5 | -11/Scrapyard | Discovered new exit (range 0) 5 | -11/Scrapyard | Entered Materials 12 | -10/Materials | Discovered new exit (range 16) 23 | -10/Materials | Identified exit to Mines 195 | -10/Materials | Discovered new exit (range 15) 284 | -10/Materials | Discovered new exit (range 16) 328 | -10/Materials | Build established: Mutant 1025 | -10/Materials | Entered Mines 1025 | -10/Mines | Discovered new exit (range 13) 1032 | -10/Mines | YI-UF0 nonchalantly dropped a Grenade Launcher on the ground 1041 | -10/Mines | Destroyed YI-UF0 1064 | -10/Mines | Found Corrupted Prototype Launcher 1217 | -10/Mines | A weapon hastily lodged in a ceiling crevice suddenly fell to the ground 1230 | -10/Mines | Learned location of Zion (-7) 1237 | -10/Mines | Learned location of Mines (-8) 1630 | -10/Mines | Discovered new exit (range 12) 1941 | -10/Mines | Entered Materials 1941 | -9/Materials | Evolved 2 slots: Propulsion x1, Utility x1 2516 | -9/Materials | Discovered new exit (range 8) 2815 | -9/Materials | Discovered new exit (range 9) 2955 | -9/Materials | Repaired Lgt. Treads 2982 | -9/Materials | Repaired Lgt. Treads 3168 | -9/Materials | Entered Mines 3181 | -9/Mines | Assembled infested the area 3186 | -9/Mines | Assisted by a Guerilla fighting off Assembled 3237 | -9/Mines | A Derelict revealed a hidden shortcut to a safe place 3356 | -9/Mines | Discovered new exit (range 9) 3374 | -9/Mines | Destroyed 7 combat bots 3584 | -9/Mines | Learned Materials interactive machine intel 3671 | -9/Mines | Discovered new exit (range 10) 3836 | -9/Mines | Build established: Scavenger-Mutant 3844 | -9/Mines | Met a Derelict shopkeep closing up shop 4072 | -9/Mines | Learned location of Storage (-8) 4168 | -9/Mines | Build established: Mutant 4175 | -9/Mines | Deemed a non-threat by the Exiles lab entrance 4175 | -9/Mines | Discovered new exit (range 5) 4181 | -9/Mines | Entered Exiles 4181 | -9/Exiles | Accompanied by 1 ally 4220 | -9/Exiles | Met 8R-AWN 4247 | -9/Exiles | Met EX-HEX 4311 | -9/Exiles | Met EX-DEC 4364 | -9/Exiles | Discovered new exit (range 14) 4869 | -9/Exiles | Attacked by the Exiles 4994 | -9/Exiles | Core integrity fell below 50% 5026 | -9/Exiles | Lost 3 parts (1n2w) 5055 | -9/Exiles | Destroyed 8R-AWN 5061 | -9/Exiles | Found Prototype Ballistic Gun 5066 | -9/Exiles | Found Prototype Device 5076 | -9/Exiles | Identified AS-neutralizer No. 17b 5081 | -9/Exiles | Found Prototype Processor 5160 | -9/Exiles | Identified 8R-AWN's Boregun 5461 | -9/Exiles | Build established: Scavenger-Mutant 5571 | -9/Exiles | Destroyed EX-BIN 5597 | -9/Exiles | Destroyed EX-HEX 6012 | -9/Exiles | Destroyed EX-DEC 6587 | -9/Exiles | Entered Mines 6836 | -8/Mines | Discovered new exit (range 5) 6848 | -8/Mines | Entered Materials 6848 | -8/Materials | Evolved 2 slots: Propulsion x1, Utility x1 6849 | -8/Materials | Loaded intel: 18 interactive machine locations 7429 | -8/Materials | Repaired Hrd. Medium Armor Plating 7794 | -8/Materials | Discovered new exit (range 15) 8048 | -8/Materials | First assault squad dispatched 8211 | -8/Materials | Build established: Mutant 8218 | -8/Materials | Lost 3 parts (2u1w) 8516 | -8/Materials | Build established: Scavenger-Mutant 8538 | -8/Materials | Discovered new exit (range 15) 8553 | -8/Materials | Destroyed 8 combat bots 8801 | -8/Materials | Discovered new exit (range 4) 8820 | -8/Materials | Build established: Mutant 8937 | -8/Materials | Core integrity fell below 50% 9005 | -8/Materials | Lost 3 parts (2n1u) 9050 | -8/Materials | Discovered new exit (range 3) 9129 | -8/Materials | Identified Exp. Targeting Computer 9235 | -8/Materials | Core integrity fell below 20% 9250 | -8/Materials | Destroyed by H-61 Shepherd with Heavy Assault Cannon Last Messages --------------- 09231_ ALERT: Suspicious intruders detected, dispatching Cutter reinforcements to area. 09233_ K-01 Serf collects debris. 09234_ Cld. Particle Cannon severed. 09235_ Kicked C-17 Slicer out of the way. 09236_ K-01 Serf collects debris. 09237_ C-17 Slicer destroyed. 09238_ K-01 Serf destroyed. 09240_ The unstable cave ceiling collapses. 09240_ K-01 Serf collects debris. 09241_ Dropped Mni. Grenade Launcher. 09243_ The unstable cave ceiling collapses. 09243_ Imp. Heat Sink crushed. 09243_ K-01 Serf collects debris. 09244_ Acquired Blade Saw. 09246_ Knocked back. 09247_ K-01 Serf collects debris. 09248_ Cld. Particle Cannon blasted off. 09248_ Knocked back. 09250_ Acquired Cld. Particle Cannon. Map ----- +----------------------------------------------------+ | | | | | | | | | | | | | | | | | | | | | | | | | | | ????????????###################???? | | ????######### ! # "T" [ #???? | | ????# * ## # #???? | | ????# *] ## "T" # * = #???? | | #???# ## /# #???? | | ##??# [ #####+########+#####???? | | !#??# /%! + ####????? | | !#??# !*% # =! # ##???? | | ####""#+### |%**=# ####? | | ! % %[[%=*=# #? | | #############+############%] == #? | | ?????????# !#???? ##% [ =/ ### | | ?????????# [ #??? # @[%] # | | ?????????# #??" #